Cogmind - Beta 15 @@@ ROGUE MODE // 2025.07.22 @ 18:00:03 Player: Skysub Result: Destroyed by PH-WSZ(R) with Subdweller Beam Cannon Performance ------------- Evolutions (0) 0 Regions Visited (2) 400 Robots Destroyed (29) 145 Value Destroyed (485) 485 Prototype IDs (0) 0 Alien Tech Used (0) 0 Bonus (0) 0 TOTAL SCORE: 1030 Bonus ------- None Cogmind --------- Core Integrity 0/250 Matter 283/300 Energy 245/250 System Corruption 0% Temperature Hot (262) Movement Rolling (140) Ox4 Location -10/Subcaves Parts ------- > --- POWER (1) -------- Ion Engine > --- PROPULSION (2) --- Wheel Wheel > --- UTILITY (2) ------ Huge Storage Unit Structural Scanner > --- WEAPON (2) ------- Light Assault Rifle Barrage Gun > --- INVENTORY (25) --- Light Ion Engine Wheel Wheel Compact Wheel Small Storage Unit Medium Storage Unit Small Laser Small Laser Mining Laser Peak State ------------ > --- POWER ------------ Ion Engine > --- PROPULSION ------- Wheel Wheel > --- UTILITY ---------- Huge Storage Unit Structural Scanner > --- WEAPON ----------- Light Assault Rifle Barrage Gun > --- INVENTORY -------- Light Ion Engine Wheel Wheel Compact Wheel Small Storage Unit Medium Storage Unit Small Laser Small Laser Mining Laser [Rating: 9] Favorites ----------- Power Ion Engine Engine Ion Engine Propulsion Light Treads Treads Light Treads Wheel Wheel Utility Huge Storage Unit Device Structural Scanner Storage Huge Storage Unit Weapon Small Laser Energy Gun Small Laser Ballistic Gun Light Assault Rifle Build | -11 -10 -10 ------- Run | Yrd Mat Sub Slots Evolved . | . . . Power . | . . . Propulsion . | . . . Utility . | . . . Weapon . | . . . Parts Attached 15 | 5 9 1 Power 1 | 1 . . Engine 1 | 1 . . Core . | . . . Reactor . | . . . Propulsion 5 | 2 3 . Treads 2 | 2 . . Leg . | . . . Wheel 3 | . 3 . Hover . | . . . Flight . | . . . Utility 4 | 1 3 . Device 1 | . 1 . Storage 3 | 1 2 . Processor . | . . . Hackware . | . . . Protection . | . . . Artifact . | . . . Weapon 5 | 1 3 1 Energy Gun 2 | . 2 . Energy Cannon . | . . . Ballistic Gun 3 | 1 1 1 Ballistic Cannon . | . . . Launcher . | . . . Special Weapon . | . . . Impact Weapon . | . . . Slashing Weapon . | . . . Piercing Weapon . | . . . Special Melee Weapon . | . . . Unidentified Prototypes . | . . . Parts Lost 5 | . 5 . Power . | . . . Propulsion 3 | . 3 . Utility . | . . . Weapon 2 | . 2 . Highest Loss Streak 2 | . 2 . To Critical Strikes . | . . . Average Backups 5 | 2 5 8 Power . | . 1 1 Propulsion 2 | 1 2 3 Utility 1 | . 1 2 Weapon 1 | . 1 2 Tool/Special . | . . . Unused Backups 6 | . . 6 Power 1 | . . 1 Propulsion 3 | . . 3 Utility . | . . . Weapon 2 | . . 2 Tool/Special . | . . . Average Slot Usage (%) 89 | . 88 100 Engine 14 | . 14 14 Treads 13 | . 14 . Wheel 14 | . 13 28 Device 6 | . 6 14 Storage 14 | . 14 14 Energy Gun 19 | . 19 14 Ballistic Gun 7 | . 6 14 Peak Build Rating 9 | 5 7 9 Average Rating 6 | 4 6 7 On Entrance 4 | . 5 7 Naked Turns . | . . . Heaviest Build 88 | 11 88 88 Greatest Support 40 | 40 40 20 Greatest Overweight (x) 8 | 1 8 4 Average Overweight (x) 4 | . 4 4 Largest Inventory Capacity 25 | 8 25 25 Average Capacity 19 | 7 19 25 Most Carried 9 | 4 8 9 Average Carried 5 | 2 5 8 Final Capacity 25 | 8 25 25 Final Carried 9 | 4 8 9 Class Distribution -------------------- 100% | Mutant Dominant Class ---------------- Mutant | -10/Materials Mutant | -10/Subcaves Resources | -11 -10 -10 ----------- Run | Yrd Mat Sub Matter Collected 386 | 274 112 . Remotely . | . . . Salvage Created 862 | 117 745 . Parts 51 | 11 40 . Haulers Intercepted . | . . . Recyclers Shooed . | . . . Parts Field Recycled . | . . . Retrieved Matter . | . . . Parts Self-Destructed . | . . . Prevented . | . . . Kills | -11 -10 -10 ------- Run | Yrd Mat Sub Combat Hostiles Destroyed 16 | . 16 . Guns 16 | . 16 . Classes Destroyed 6 | 3 3 . Worker 3 | 1 2 . Builder 4 | . 4 . Tunneler 3 | 3 . . Recycler 3 | 1 2 . Swarmer 6 | . 6 . Grunt 10 | . 10 . Best Kill Streak 4 | 4 4 . Combat Bots Only 4 | . 4 . Max Kills in Single Turn 2 | 1 2 . Gunslinging 1 | . 1 . Exploded . | . . . Melee . | . . . Uniques/NPCs Destroyed . | . . . Combat | -11 -10 -10 -------- Run | Yrd Mat Sub Hostile Shots Fired 82 | . 80 2 Missed 16 | . 16 . Hits 66 | . 64 2 Projectile 66 | . 64 2 Critical Strikes 1 | . . 1 Damage Taken 844 | . 785 59 Core 259 | . 200 59 Absorbed by Shields . | . . . Core Remaining (%) 100 | 100 . . Volleys Fired 106 | 28 77 1 Largest 2 | 1 2 2 Hottest 80 | 20 80 48 Shots Fired 174 | 28 144 2 Gun 174 | 28 144 2 Cannon . | . . . Launcher . | . . . Special . | . . . Kinetic 69 | 28 39 2 Thermal 105 | . 105 . Explosive . | . . . Electromagnetic . | . . . Robot Hit Streak 13 | 7 13 . Robot Miss Streak 5 | 3 5 2 Penetration Max . | . . . Secondary Targets 3 | . 3 . Max Gunslinging Chain 1 | . 1 . Shots Hit Robots 113 | 17 96 . Core Hits 50 | 10 40 . Critical Kills . | . . . Critical Parts Destroyed . | . . . Critical Strikes . | . . . Melee Attacks . | . . . Impact . | . . . Slashing . | . . . Piercing . | . . . Sneak Attacks . | . . . Combat Hostiles . | . . . Follow-up Attacks . | . . . Damage Inflicted 1235 | 148 1087 . Guns 1135 | 147 988 . Cannons . | . . . Explosions 90 | . 90 . Melee . | . . . Ramming 10 | 1 9 . Kinetic 342 | 147 195 . Thermal 793 | . 793 . Explosive 90 | . 90 . Electromagnetic . | . . . Impact . | . . . Slashing . | . . . Piercing . | . . . Highest Corruption . | . . . Average Corruption . | . . . Corruption Purged . | . . . Corruption Blocked . | . . . Overload Shots . | . . . Overflow Damage 22 | . 22 . Projectiles . | . . . Explosions 22 | . 22 . Melee . | . . . Knockbacks 1 | . 1 . Impact 1 | . 1 . Kinetic . | . . . Secondary . | . . . Self-Inflicted Damage 118 | . 118 . Shots 1 | . 1 . Rammed 2 | 1 1 . Targets Rammed 3 | 2 1 . Kicked . | . . . Crushed 1 | 1 . . Highest Temperature 269 | . 120 269 Average Temperature 39 | . 37 261 Received Heat Transfer 591 | . 273 318 Siege Activations . | . . . Martial Activations . | . . . Shielding Activations . | . . . Robots Disrupted . | . . . Combat Hostiles . | . . . Robots Corrupted . | . . . Combat Hostiles . | . . . Parts Fried . | . . . Impact Corruptions . | . . . Robots Melted . | . . . Combat Hostiles . | . . . Parts Melted 1 | . 1 . Heat Transferred 1800 | . 1800 . Parts Sabotaged . | . . . Parts Stolen . | . . . Parts Stripped . | . . . Power Chain Reactions . | . . . Alert | -11 -10 -10 ------- Run | Yrd Mat Sub Maximum Alert Level . | . . . Low Security (%) 100 | 100 100 . Level 1 . | . . . Level 2 . | . . . Level 3 . | . . . Level 4 . | . . . Level 5 . | . . . High Security . | . . . Max Security . | . . . Peak Influence 175 | 15 175 . Initial 3 | . 3 . Average 82 | 2 90 . Influence Increases 588 | 25 563 . Destroy 0b10 Robot/C 320 | . 320 . Destroy 0b10 Robot/NC 65 | 25 40 . Destroy Leader 70 | . 70 . Successful Hack 12 | . 12 . Select Force Hacks 60 | . 60 . Disable Machine 15 | . 15 . Destroy Structure 31 | . 31 . Partial Spotted 15 | . 15 . Influence Decreases 581 | 20 476 85 Entered New Map 47 | . 2 45 Time Decay 484 | 20 424 40 Lost Part 50 | . 50 . Squads Dispatched 4 | . 4 . Investigation 3 | . 3 . Extermination . | . . . Reinforcement 1 | . 1 . Assault . | . . . Garrison . | . . . Intercept . | . . . Searches Triggered . | . . . Construction Impeded . | . . . Haulers Reinforced . | . . . Active Scanning Responses . | . . . Cargo Convoy Interrupts . | . . . Stealth | -11 -10 -10 --------- Run | Yrd Mat Sub Distress Signals 2 | . 2 . Communications Jammed . | . . . Distress Signals . | . . . Times Spotted 30 | . 29 1 Peak Tracking Total 5 | . 5 2 Tactical Retreats . | . . . Traps | -11 -10 -10 ------- Run | Yrd Mat Sub Traps Triggered 1 | . 1 . Indirectly . | . . . Trap Hack Attempts . | . . . Triggered . | . . . Disarmed . | . . . Reprogrammed . | . . . Reused . | . . . Traps Extracted . | . . . Installed . | . . . Triggered . | . . . Machines | -11 -10 -10 ---------- Run | Yrd Mat Sub Machines Disabled 1 | . 1 . Max in Single Turn 1 | . 1 . Machines Repaired . | . . . Machines Dismantled . | . . . Machines Sabotaged . | . . . Overloaded Fab Kills . | . . . Hacking | -11 -10 -10 --------- Run | Yrd Mat Sub Machines Accessed 8 | . 8 . Terminals 6 | . 6 . Fabricators . | . . . Repair Stations . | . . . Recycling Units 2 | . 2 . Scanalyzers . | . . . Garrison Access . | . . . Total Hacks 20 | . 20 . Successful 11 | . 11 . Failed 9 | . 9 . Catastrophic . | . . . Database Lockouts . | . . . Manual 18 | . 18 . Terminals 16 | . 16 . Fabricators . | . . . Repair Stations . | . . . Recycling Units 4 | . 4 . Scanalyzers . | . . . Garrison Access . | . . . Terminal Hacks . | . . . Fabricator Hacks . | . . . Repair Station Hacks . | . . . Recycling Unit Hacks 2 | . 2 . Report Inventory 2 | . 2 . Scanalyzer . | . . . Garrison Access Hacks . | . . . Unauthorized Hacks 9 | . 9 . Terminals 7 | . 7 . Botnet 2 | . 2 . Skim 5 | . 5 . Fabricators . | . . . Repair Stations . | . . . Recycling Units 2 | . 2 . Tunnel 2 | . 2 . Scanalyzers . | . . . Garrison Access . | . . . Data Cores Recovered . | . . . Used . | . . . Hacking Detections 3 | . 3 . Full Trace Events . | . . . Feedback Events . | . . . Feedback Blocked . | . . . Robot Schematics Acquired . | . . . Robots Built . | . . . Authchips . | . . . Time . | . . . Total Robot Build Rating . | . . . Part Schematics Acquired . | . . . Parts Built . | . . . Authchips . | . . . Time . | . . . Total Part Build Rating . | . . . Parts Repaired . | . . . Time . | . . . Parts Recycled . | . . . Recycled Matter . | . . . Retrieved Matter . | . . . Retrieved Components . | . . . Parts Scanalyzed . | . . . Part Schematics Acquired . | . . . Parts Damaged . | . . . Bothacking | -11 -10 -10 ------------ Run | Yrd Mat Sub Used RIF Installer . | . . . Robots Hacked . | . . . Non-combat . | . . . Combat . | . . . Robot Hacks Applied . | . . . Relay Couplers Released . | . . . Fabnet Peak Effective % . | . . . Robots Rewired . | . . . Allies Hacked . | . . . Hacks Repelled . | . . . Allies | -11 -10 -10 -------- Run | Yrd Mat Sub Total Allies . | . . . Largest Group . | . . . Highest-Rated Group . | . . . Highest-Rated Ally . | . . . Total Orders . | . . . Ally Attacks . | . . . Total Damage . | . . . Kills . | . . . Allies Corrupted . | . . . Allies Melted . | . . . Intel | -11 -10 -10 ------- Run | Yrd Mat Sub Active Infowar (turns) 739 | . 641 98 Structural 739 | . 641 98 Robot Analysis Total . | . . . Derelict Logs Recovered . | . . . Drone Launches . | . . . Drone Recoveries . | . . . Exploration | -11 -10 -10 ------------- Run | Yrd Mat Sub Turns Passed 1725 | 150 1477 98 Spaces Moved 736 | 56 613 67 Core 5 | 5 . . Treads 237 | 51 186 . Legs . | . . . Wheels 494 | . 427 67 Hover . | . . . Flight . | . . . Fastest Speed 50 | 50 140 140 Average Speed 166 | 152 170 140 Slowest Speed 200 | 160 200 140 Overloaded Moves . | . . . Propulsion Burnouts . | . . . Robots Hopped . | . . . Potential Cave-ins . | . . . Cave-ins Triggered . | . . . Exploration Rate (%) 36 | 4 97 8 Regions Visited 2 Branch Regions 1 Pre-discovered Areas 3 | . 3 . Known Exits Taken 1 | . 1 . Unknown Exits Taken 1 | 1 . . Scrap Searched . | . . . Spaces Dug . | . . . Terrain Destroyed 29 | . 29 . Melee . | . . . Projectile . | . . . AOE 29 | . 29 . Terrain Rammed . | . . . Walls Destroyed . | . . . Machines Disabled . | . . . Actions | -11 -10 -10 --------- Run | Yrd Mat Sub Total 1070 | 94 906 70 Wait 199 | . 199 . Move 734 | 55 612 67 Hop . | . . . Pick Up 11 | 4 6 1 Fast Attach 10 | 5 5 . Attach 4 | . 4 . Detach 2 | . 2 . Swap 1 | . . 1 Drop . | . . . Fire 106 | 28 77 1 Melee . | . . . Ram 1 | . 1 . Kick . | . . . Crush 2 | 2 . . Escape Stasis . | . . . Rewire . | . . . Trap . | . . . Miscellaneous . | . . . Route ------- -11/Scrapyard -10/Materials (discovered 6 exits: [*Mat x3] / [*Min x2] / *Sub) -10/Subcaves (discovered 2 exits: Mat x2) History --------- Turn | Location | Event 8 | -11/Scrapyard | Discovered new exit (range 16) 151 | -11/Scrapyard | Entered Materials 315 | -10/Materials | Discovered new exit (range 15) 318 | -10/Materials | Build established: Mutant 673 | -10/Materials | Discovered new exit (range 10) 1050 | -10/Materials | Discovered new exit (range 15) 1210 | -10/Materials | Core integrity fell below 50% 1280 | -10/Materials | Discovered new exit (range 16) 1338 | -10/Materials | Discovered new exit (range 3) 1367 | -10/Materials | Identified exit to Subcaves 1417 | -10/Materials | Learned location of 2 exits from Materials 1492 | -10/Materials | Learned location of Storage (-7) 1546 | -10/Materials | Loaded intel: 2 recycling unit locations 1605 | -10/Materials | Learned location of 2 exits from Materials 1628 | -10/Materials | Entered Subcaves 1629 | -10/Subcaves | Approached by a straggling Scientist 1629 | -10/Subcaves | Identified exit to Materials 1704 | -10/Subcaves | Shifting Twisted Machinery released Barrage Gun 1725 | -10/Subcaves | Core integrity fell below 20% 1726 | -10/Subcaves | Destroyed by PH-WSZ(R) with Subdweller Beam Cannon Last Messages --------------- 01605_ >> SKIM: Stored Materials exits (x2). 01605_ >> SKIM: Data seek routine purged. LOCATION=SUBCAVES AMBIENT_HEAT=-10 GOAL=ESCAPE 01629_ FZ-2RF(c): "Thank the algorithms! I was beginning to lose hope I'd never make it past all the Subs lurking out here." Loading 2 Materials entrances... 01632_ FZ-2RF(c): "Hey, let me tag along and I can get us both out of this nasty situation. At least I think I can... The group I got separated from was talking about a shortcut back to the UFD." FZ-2RF(c): "I think it's somewhere southwest of here" Barrage Gun falls loose from the Twisted Machinery. 01715_ Acquired Barrage Gun. 01724_ Critical hit (Meltdown: +300). Map ----- +----------------------------------------------------+ | #### ####### ####### ###?????? | | #### ### ###### ##?????? | | #### #### ### ## ###????? | | ## ######### ##????? | | ######### #### ## ????? | | ##??? ###### ####?????????? | | # ### ###### ####??????????? | | ####### # ### ##?### ###???????????? | | ######## ###### #?## # ###????????????? | | ?????##########????? ### ###????????????? | | ??????######????# # ### ###???? ###????? | | ????????????????####### ## ######? ###????? | | ????????????????###### " ##" #### ##????? | | ???????????????????#### ### ##????? | | ???????????????????#"" " ### ###????? | | ????????????????????" "" ##" # ##?????? | | ????????????????????# """ "## " # ?????? | | ???????????????????### " ### ## " ##????????? | | ???????????????????### " " ## ###""" ##????????? | | ???????????????????## """"" ### " "????????? | | ???????????????????### """"" ##? "" ????????? | | ????????????????????### # ###? " ?????????? | | ????????????????????### c########??? ??????????? | | ???????????????????###### #######???????????????? | | ???????????????????###### ##???????????????????? | | ???????????????????## @ ###???????????????????? | | ???????????? ## ???????????????????? | | ???????????? ## ## # R ????????????????????? | | ???????????? ## ? ######## ?????????????????? | | ?????????????## ?? ###### ### ?????????????????? | | ????????????????????????? ####?????????????????? | | ????????????????????????? ##???????????????????? | | ????????????????????????? ##???????????????????? | | ?????????????????????????" ##???????????????????? | | ?????????????????????????"""""???????????????????? | | ????????????????????????? ????????????????????? | | ????????????????????????? # ????????????????????? | | ????????????????????????? # ???????????????????? | | ??????????????????????????## ????????????????????? | | ?????????????????????????????????????????????????? | | ?????????????????????????????????????????????????? | | ?????????????????????????????????????????????????? | | ?????????????????????????????????????????????????? | | ?????????????????????????????????????????????????? | | ?????????????????????????????????????????????????? | | ?????????????????????????????????????????????????? | | ?????????????????????????????????????????????????? | | ?????????????????????????????????????????????????? | | ?????????????????????????????????????????????????? | | ?????????????????????????????????????????????????? | +----------------------------------------------------+ Best States ------------- Heat Dissipation 25 Energy Generation 10 Energy Capacity 250 Matter Stores 300 Matter Capacity 300 Sight Range 16 Terrain Scan Density 10 Evasion (%) 40 Recoil Reduction 2 Item Schematics ----------------- None Robot Schematics ------------------ None Fabricated ------------ Nothing Repaired ---------- Nothing Alien Tech Used ----------------- None Achievements -------------- None Challenges ------------ None Game ------ Seed RecoilDisposableRail Manual? 0 Play Time 00:08:42 Cumulative 173.4 hours Start 2025.07.22 @ 17:51:56 End 2025.07.22 @ 18:00:03 Sessions 1 Manual Loads 0 Difficulty Rogue Special Mode None Game No. 199 Rogue 199 Adventurer 0 Explorer 0 Win Type - Total 3 Types 1/0/0/1/0/0/0/0/0/1 Lore% 68 Gallery% 63 Achievement% 56 Wizard Run 0 Options --------- Layout 1 ASCII 0 Keyboard 1 Movement Arrows Keybinds 0 Fullscreen 1 Font 36/Smallcaps Map View 50x40 Zoom Use 0% Tactical HUD 1 Map Filters NONE Filters NONE Steam 1 RUN: 4ca908b3-d46b-471f-9645-7c94226c2735